bitfinex/quotes_BTCUSD_20250328
["timestamp","ask_amount","ask_price","bid_price","bid_amount"]
[1743184947828,0.46959639,84180.0,84179.0,0.003]
[1743184948029,0.51929639,84180.0,84179.0,0.003]
[1743184948260,0.51929639,84180.0,84179.0,0.006]
[1743184948479,0.57823784,84180.0,84179.0,0.006]
[1743184948792,0.57823784,84180.0,84169.0,0.0003376]
[1743184948793,0.99563784,84180.0,84169.0,0.0003376]
[1743184948996,0.249494,84170.0,84169.0,0.0003376]
[1743184949342,0.25513788,84170.0,84169.0,0.0003376]
[1743184949967,0.24325788,84170.0,84169.0,0.0003376]
[1743184950170,0.00564388,84170.0,84169.0,0.36409224]
[1743184950375,0.249488,84173.0,84169.0,0.35521224]
[1743184950615,0.14163463,84172.0,84171.0,0.237611]
[1743184950831,0.14163463,84172.0,84171.0,0.36374864]
[1743184951033,0.14163463,84172.0,84171.0,0.37828949]
[1743184951255,0.136,84172.0,84171.0,0.37828949]
[1743184951976,0.14164994,84172.0,84171.0,0.37828949]
[1743184952735,0.01188,84170.0,84169.0,0.0023376]
[1743184952939,0.237614,84170.0,84169.0,0.0023376]
[1743184953137,0.315711,84171.0,84169.0,0.0023376]
[1743184953313,0.24326394,84170.0,84169.0,0.0023376]
[1743184953545,0.25514394,84170.0,84169.0,0.0023376]
[1743184954299,0.25514394,84170.0,84169.0,0.46333309]
[1743184954300,0.00564994,84170.0,84169.0,0.46333309]
[1743184954508,0.14184994,84170.0,84169.0,0.76133309]
[1743184954715,0.0243976,84202.0,84178.0,0.24947]
[1743184954941,0.011876,84199.0,84178.0,0.37826849]
[1743184955174,0.2377058,84198.0,84179.0,0.26400785]
[1743184955413,0.0001688,84198.0,84179.0,0.37826549]
[1743184955647,0.13664446,84180.0,84179.0,0.37826549]
[1743184955946,0.00028446,84180.0,84179.0,0.37826549]
[1743184956177,4.6e-07,84180.0,84179.0,0.80326549]
[1743184956419,4.6e-07,84180.0,84179.0,0.84006393]
[1743184956657,4.6e-07,84180.0,84179.0,0.84306393]
[1743184956904,4.6e-07,84180.0,84179.0,0.86438856]
[1743184957352,4.6e-07,84180.0,84179.0,0.87438856]
[1743184957621,4.6e-07,84180.0,84179.0,0.88314764]
[1743184957859,4.6e-07,84180.0,84179.0,0.87914764]
[1743184959336,4.6e-07,84180.0,84179.0,0.8423492]
[1743184959737,4.6e-07,84180.0,84179.0,0.8483492]
[1743184959853,0.01862798,84180.0,84179.0,0.8483492]
[1743184960657,0.01862798,84180.0,84179.0,0.7233492]
[1743184962308,0.01862798,84180.0,84179.0,0.7113492]
[1743184962628,0.01862798,84180.0,84179.0,0.7173492]
[1743184962805,0.01862798,84180.0,84179.0,0.7233492]
[1743184965132,4.6e-07,84180.0,84179.0,0.7233492]
[1743184965973,4.6e-07,84180.0,84179.0,0.7173492]
[1743184966378,0.13612046,84180.0,84179.0,0.7213492]
[1743184966590,0.13612046,84180.0,84179.0,0.41259012]
[1743184967957,4.6e-07,84180.0,84179.0,0.41259012]
[1743184968410,4.6e-07,84180.0,84179.0,0.42154106]
[1743184969780,0.01862937,84180.0,84179.0,0.42154106]
[1743184970395,0.01862937,84180.0,84179.0,0.72154106]
[1743184970724,0.01862937,84180.0,84179.0,0.84604106]
[1743184971537,3.7e-07,84180.0,84179.0,0.88286442]
[1743184971739,0.13612,84188.0,84187.0,0.56398485]
[1743184971941,0.13612,84188.0,84187.0,0.67824249]
[1743184973185,0.13612,84188.0,84187.0,0.68424249]
[1743184974279,0.0001688,84195.0,84194.0,0.26396385]
[1743184974529,0.0001688,84195.0,84194.0,0.37822149]
[1743184974706,0.00524666,84195.0,84194.0,0.37822149]
[1743184974910,0.0001688,84195.0,84194.0,0.37822149]
[1743184975104,0.01879549,84195.0,84194.0,0.37822149]
[1743184975311,0.01879549,84195.0,84194.0,0.67822149]
[1743184975661,0.0001688,84195.0,84194.0,0.68122149]
[1743184976012,0.0001688,84195.0,84194.0,0.68622149]
[1743184976440,0.0001688,84195.0,84194.0,0.68322149]
[1743184976847,0.0001688,84195.0,84194.0,0.68922149]
[1743184977088,0.0001688,84195.0,84194.0,0.71285242]
[1743184978399,0.0001688,84195.0,84194.0,0.71976749]
[1743184978807,0.01879438,84195.0,84194.0,0.71976749]
[1743184980103,0.15519438,84195.0,84194.0,0.71976749]
[1743184981284,0.15519438,84195.0,84194.0,0.71285242]
[1743184981505,0.15519438,84195.0,84194.0,1.41285242]
[1743184983311,0.15519438,84195.0,84194.0,1.4217497]
[1743184983515,0.15519438,84195.0,84194.0,1.4286783]
[1743184985023,0.15519438,84195.0,84194.0,1.41978102]
[1743184986395,0.15519438,84195.0,84194.0,1.41285242]
[1743184988258,0.15519438,84195.0,84194.0,1.11285242]
[1743184988827,0.1365688,84195.0,84194.0,1.11285242]
[1743184989025,0.14174568,84195.0,84194.0,1.11285242]
[1743184989236,0.1365688,84195.0,84194.0,1.11285242]
[1743184989647,0.1368488,84195.0,84194.0,1.11285242]
[1743184990046,0.1368488,84195.0,84194.0,0.41285242]
[1743184991271,0.1368488,84195.0,84194.0,1.11285242]
[1743184991518,0.0001688,84195.0,84194.0,1.11285242]
[1743184992014,0.1368888,84195.0,84194.0,1.11285242]
[1743184992216,0.0001688,84195.0,84194.0,1.11285242]
[1743184992422,0.0001688,84195.0,84194.0,1.44976014]
[1743184993112,0.01879434,84195.0,84194.0,1.44976014]
[1743184995158,0.0001688,84195.0,84194.0,1.44976014]
[1743184998076,0.0187942,84195.0,84194.0,1.44976014]
[1743184999022,2e-07,84195.0,84194.0,1.44976014]
[1743184999232,0.0823,84225.0,84212.0,0.3]
[1743184999431,7e-07,84214.0,84213.0,0.67816549]
[1743184999653,7e-07,84214.0,84213.0,0.71502319]
[1743185000586,0.00011644,84214.0,84213.0,0.71502319]
[1743185001033,0.00011644,84214.0,84213.0,0.72695546]
[1743185001688,0.00011644,84214.0,84213.0,1.42695546]
[1743185001903,0.00011644,84214.0,84213.0,1.43572251]
[1743185002257,0.01873756,84214.0,84213.0,1.45989896]
[1743185002484,0.01873756,84214.0,84213.0,1.47189896]
[1743185003390,0.01873756,84214.0,84213.0,1.43504126]
[1743185004773,0.01893825,84214.0,84213.0,1.43504126]
[1743185006060,0.0001688,84231.0,84230.0,0.249317]
[1743185006207,0.0120369,84255.0,84230.0,0.249317]
[1743185006208,0.0001689,84255.0,84254.0,0.24769844]
[1743185006372,0.0817,84268.0,84260.0,0.02640885]
[1743185006652,0.0001689,84280.0,84264.0,0.26375685]
[1743185006852,0.0001689,84280.0,84264.0,0.37801449]
[1743185007058,0.00061186,84265.0,84264.0,0.37801449]
[1743185007902,0.00061186,84265.0,84264.0,0.40226809]
[1743185008160,0.00061186,84265.0,84264.0,0.39040109]
[1743185008388,0.00061186,84265.0,84264.0,0.40226809]
[1743185009270,0.13729186,84265.0,84264.0,0.40726809]
[1743185009507,0.00061186,84265.0,84264.0,0.70726809]
[1743185010368,0.00061186,84265.0,84264.0,0.70226809]
[1743185010562,0.00061186,84265.0,84264.0,1.40226809]
[1743185010782,0.00061186,84265.0,84264.0,1.40726809]
[1743185012336,0.0001689,84273.0,84264.0,1.16991909]
[1743185012572,0.0003017,84273.0,84272.0,0.67799049]
[1743185013197,7e-07,84273.0,84272.0,0.67799049]
[1743185013664,7e-07,84273.0,84272.0,1.37799049]
[1743185013869,7e-07,84273.0,84272.0,1.38399049]
[1743185014340,7e-07,84273.0,84272.0,1.37799049]
[1743185014565,7e-07,84273.0,84272.0,0.68244447]
[1743185015573,0.0001689,84283.0,84282.0,0.249162]
[1743185015797,0.0777689,84299.0,84284.0,0.549156]
[1743185015798,5e-07,84285.0,84284.0,0.549156]
[1743185016007,5e-07,84285.0,84284.0,0.67795449]
[1743185016623,5e-07,84285.0,84284.0,1.37795449]
[1743185017178,5e-07,84285.0,84284.0,1.38395449]
[1743185017679,5e-07,84285.0,84284.0,1.06341364]
[1743185017876,0.1375205,84285.0,84284.0,1.06341364]
[1743185018089,0.1493845,84285.0,84284.0,0.81425764]
[1743185018329,0.2147205,84285.0,84282.0,0.2613537]
[1743185018486,0.21874505,84285.0,84283.0,0.937294]
[1743185018685,0.21874505,84285.0,84284.0,0.011864]
[1743185019186,0.21874505,84285.0,84284.0,0.017864]
[1743185019334,0.2147205,84285.0,84284.0,0.017864]
[1743185019521,0.21874505,84285.0,84284.0,0.017864]
[1743185019728,0.21874505,84285.0,84284.0,0.011864]
[1743185019930,0.21874505,84285.0,84284.0,0.013864]
[1743185020524,0.21930505,84285.0,84284.0,0.12812164]
[1743185020751,0.14210505,84285.0,84284.0,0.14266249]
[1743185020949,0.14210505,84285.0,84284.0,0.14066249]
[1743185021172,0.1380805,84285.0,84284.0,0.14066249]
[1743185021352,5e-07,84285.0,84284.0,0.14066249]
[1743185021569,0.1381205,84285.0,84284.0,0.14066249]
[1743185022366,0.1381205,84285.0,84284.0,0.14266249]
[1743185022843,0.1381205,84285.0,84284.0,0.11625764]
[1743185023038,0.1381205,84285.0,84284.0,0.12812164]
[1743185023195,0.1421526,84285.0,84284.0,0.12812164]
[1743185023404,0.1381205,84285.0,84284.0,0.12612164]
[1743185023595,0.1381205,84285.0,84284.0,0.13212164]
[1743185024611,0.1381205,84285.0,84284.0,0.36941364]
[1743185029167,0.14214302,84285.0,84284.0,0.36000364]
[1743185029398,0.1381205,84285.0,84284.0,0.36000364]
[1743185030153,0.14214302,84285.0,84284.0,0.0063372]
[1743185030558,0.14231162,84285.0,84284.0,0.0063372]
[1743185030818,0.14231162,84285.0,84284.0,0.2554932]
[1743185031401,0.14231162,84285.0,84284.0,0.2494932]
[1743185031604,0.1382891,84285.0,84284.0,0.2534932]
[1743185032631,0.14231162,84285.0,84284.0,0.2534932]
[1743185033113,0.14231162,84285.0,84284.0,0.36775084]
[1743185033559,0.1382891,84285.0,84284.0,0.36775084]
[1743185033945,0.0001691,84285.0,84284.0,0.36775084]
[1743185034185,0.1380091,84285.0,84284.0,0.36775084]
[1743185034825,0.1379691,84285.0,84284.0,0.36775084]
[1743185035364,0.3752591,84285.0,84284.0,0.11859484]
[1743185035553,0.1379691,84285.0,84284.0,0.11859484]
[1743185035752,0.14200528,84285.0,84284.0,0.35588684]
[1743185035979,0.14200528,84285.0,84284.0,0.36775084]
[1743185036258,0.1379691,84285.0,84284.0,0.36775084]
[1743185036893,0.14200528,84285.0,84284.0,0.36775084]
[1743185037320,0.14200528,84285.0,84284.0,0.11859484]
[1743185037520,0.1379691,84285.0,84284.0,0.11859484]
[1743185037722,0.14200528,84285.0,84284.0,0.35588684]
[1743185038145,0.46685928,84285.0,84284.0,0.0043372]
[1743185039195,0.51355928,84285.0,84284.0,0.0043372]
[1743185039531,0.26448528,84285.0,84284.0,0.2534932]
[1743185039917,0.26448528,84285.0,84284.0,0.36775084]
[1743185040423,0.26448528,84285.0,84284.0,0.35588684]
[1743185040829,0.26448528,84285.0,84284.0,0.11859484]
[1743185041329,0.12660528,84285.0,84284.0,0.11859484]
[1743185041525,0.50197528,84285.0,84284.0,0.11859484]
[1743185042400,0.53086236,84285.0,84284.0,0.0043372]
[1743185042621,0.51383928,84285.0,84284.0,0.0043372]
[1743185043609,0.50209528,84285.0,84284.0,0.0043372]
[1743185043785,0.12660528,84285.0,84284.0,0.0043372]
[1743185043997,0.43817928,84285.0,84284.0,0.0043372]
[1743185044621,0.51907928,84285.0,84284.0,0.0043372]
[1743185051236,0.51907928,84285.0,84284.0,0.0003372]
[1743185051476,0.38095928,84285.0,84284.0,0.0023372]
[1743185051702,0.51911928,84285.0,84284.0,0.0023372]
[1743185054083,0.51911928,84285.0,84284.0,0.0003372]
[1743185054456,0.51911928,84285.0,84284.0,0.0023372]
[1743185054657,0.63337692,84285.0,84284.0,0.0023372]
[1743185055060,0.63337692,84285.0,84284.0,0.0003372]
[1743185055276,0.63337692,84285.0,84284.0,0.0023372]
[1743185055483,0.60947456,84285.0,84284.0,0.0023372]
[1743185055706,0.49521692,84285.0,84284.0,0.0023372]
[1743185055912,0.51907928,84285.0,84284.0,0.0023372]
[1743185057192,0.13180528,84285.0,84284.0,0.0023372]
[1743185057475,0.14224528,84285.0,84284.0,0.2396292]
[1743185057651,0.14240528,84285.0,84284.0,0.2514932]
[1743185057849,0.37969528,84285.0,84284.0,0.0023372]
[1743185058048,0.25335928,84285.0,84284.0,0.0023372]
[1743185058386,0.39151928,84285.0,84284.0,0.02579957]
[1743185058601,0.14236528,84285.0,84284.0,0.02579957]
[1743185058801,0.37965528,84285.0,84284.0,0.02779957]
[1743185058960,0.39151928,84285.0,84284.0,0.02779957]
[1743185059383,0.37965528,84285.0,84284.0,0.02779957]
[1743185060318,0.14228528,84285.0,84284.0,0.27695557]
[1743185060513,0.14228528,84285.0,84284.0,0.02779957]
[1743185060712,0.37957528,84285.0,84284.0,0.02779957]
[1743185061325,0.14228528,84285.0,84284.0,0.02779957]
[1743185061523,0.14220528,84285.0,84284.0,0.02779957]
[1743185061754,0.37949528,84285.0,84284.0,0.02779957]
[1743185062290,0.14212528,84285.0,84284.0,0.02779957]
[1743185062899,0.37941528,84285.0,84284.0,0.02779957]
[1743185063100,0.55923681,84285.0,84284.0,0.0043372]
[1743185063301,0.51977928,84285.0,84284.0,0.0043372]
[1743185063649,0.27062528,84285.0,84284.0,0.0043372]
[1743185064051,0.14212528,84285.0,84284.0,0.2534932]
[1743185064189,0.00420528,84285.0,84284.0,0.2416292]
[1743185064394,0.39123928,84285.0,84284.0,0.0043372]
[1743185065119,0.14208528,84285.0,84284.0,0.0043372]
[1743185065329,0.39123928,84285.0,84284.0,0.0043372]
[1743185065942,0.14208528,84285.0,84284.0,0.0043372]
[1743185066149,0.37937528,84285.0,84284.0,0.0043372]
[1743185066350,0.39123928,84285.0,84284.0,0.0043372]
[1743185066766,0.39123928,84285.0,84253.0,0.005]
[1743185066767,0.297413,84265.0,84264.0,4e-07]
[1743185066958,0.62717064,84265.0,84264.0,2e-07]
[1743185067206,0.63111702,84265.0,84264.0,2e-07]
[1743185067371,0.74537466,84265.0,84264.0,2e-07]
[1743185067796,0.249245,84254.0,84253.0,0.005]
[1743185067995,0.44030264,84254.0,84253.0,0.005]
[1743185068196,0.44418218,84254.0,84253.0,0.005]
[1743185068512,0.74418218,84254.0,84253.0,0.005]
[1743185068713,0.596854,84251.0,84250.0,0.10606874]
[1743185068918,0.71111164,84251.0,84250.0,0.10606874]
[1743185069117,1.13234292,84251.0,84250.0,0.10606874]
[1743185069744,1.27030292,84251.0,84250.0,0.10606874]
[1743185069901,1.38556056,84251.0,84250.0,0.10606874]
[1743185070105,1.38956056,84251.0,84250.0,0.10606874]
[1743185070322,1.38956056,84251.0,84250.0,0.09463759]
[1743185070500,1.47076056,84251.0,84250.0,5.9e-07]
[1743185071016,1.47076056,84251.0,84220.0,0.237473]
[1743185071017,0.237464,84224.0,84220.0,0.237473]
[1743185071220,0.13788,84223.0,84220.0,0.237473]
[1743185071426,0.237472,84221.0,84217.0,0.23748]
[1743185071825,0.13788,84223.0,84221.0,0.249342]
[1743185072183,0.13788,84223.0,84221.0,0.24978496]
[1743185072640,0.249315,84231.0,84221.0,0.24978496]
[1743185072641,0.011872,84231.0,84223.0,0.011873]
[1743185072808,0.237432,84235.0,84231.0,0.237441]
[1743185073173,0.13776,84234.0,84231.0,0.237441]
[1743185073374,0.01187,84239.0,84231.0,0.011872]
[1743185073495,0.237411,84245.0,84236.0,0.237425]
[1743185073699,0.237411,84245.0,84236.0,0.011871]
[1743185073945,0.23742,84239.0,84235.0,0.011871]
[1743185074149,0.249287,84240.0,84236.0,0.237427]
[1743185074355,0.237378,84254.0,84236.0,0.237427]
[1743185074356,0.237388,84250.0,84240.0,0.01187]
[1743185074604,0.237397,84247.0,84241.0,0.237414]
[1743185074807,0.237397,84247.0,84242.0,0.23741]
[1743185075114,0.2374,84246.0,84242.0,0.24928]
[1743185075242,0.249263,84248.0,84243.0,0.249277]
[1743185075447,0.375278,84247.0,84243.0,0.249277]
[1743185075658,0.13788,84247.0,84245.0,0.237401]
[1743185075862,0.13788,84247.0,84244.0,0.237405]
[1743185076240,0.001,84246.0,84244.0,0.237405]
[1743185077166,0.377277,84247.0,84244.0,0.237405]
[1743185077389,0.01187,84243.0,84238.0,0.237421]
[1743185077625,0.237415,84241.0,84237.0,0.249294]
[1743185078381,0.237418,84240.0,84235.0,0.237429]
[1743185078586,0.27490805,84241.0,84233.0,0.011871]
[1743185078587,0.01187,84239.0,84233.0,0.237436]
[1743185078786,0.23742,84239.0,84234.0,0.237432]
[1743185078986,0.03749305,84241.0,84238.0,0.001]
[1743185079186,0.149749,84247.0,84238.0,0.001]
[1743185079187,0.011869,84246.0,84238.0,0.238421]
[1743185079394,0.011869,84246.0,84239.0,0.01187]
[1743185079617,0.237414,84241.0,84238.0,0.249292]
[1743185079820,0.13772,84240.0,84237.0,0.012871]
[1743185080361,0.375137,84240.0,84237.0,0.249295]
[1743185080697,0.375137,84240.0,84238.0,0.237422]
[1743185080894,0.375136,84240.0,84237.0,0.011871]
[1743185081107,0.375136,84240.0,84237.0,0.249295]
[1743185081441,0.375136,84240.0,84237.0,0.251295]
[1743185081988,0.375136,84240.0,84238.0,0.002]
[1743185082260,0.13772,84240.0,84238.0,0.237422]
[1743185082455,0.249273,84245.0,84238.0,0.237422]
[1743185082660,0.249273,84245.0,84237.0,0.015871]
[1743185082661,0.0001687,84251.0,84245.0,0.01187]
[1743185082964,0.0001687,84251.0,84250.0,0.249257]
[1743185083202,0.1376887,84251.0,84250.0,0.237388]
[1743185083560,0.0001687,84251.0,84250.0,0.249257]
[1743185083862,0.1376487,84251.0,84250.0,0.249257]
[1743185084464,0.1377813,84251.0,84250.0,0.26314424]
[1743185084823,0.1377813,84251.0,84250.0,0.26114424]
[1743185085402,0.1377813,84251.0,84250.0,0.26414424]
[1743185085629,0.0003013,84251.0,84250.0,0.252257]
[1743185085936,0.1377813,84251.0,84250.0,0.252257]
[1743185086127,0.1377813,84251.0,84250.0,0.255257]
[1743185087006,0.1377413,84251.0,84250.0,0.017869]
[1743185087214,0.1377413,84251.0,84250.0,0.255257]
[1743185087687,0.00402359,84251.0,84250.0,0.255257]
[1743185087816,0.1377013,84251.0,84250.0,0.255257]
[1743185088018,0.0003013,84251.0,84250.0,0.68405549]
[1743185088238,0.0003013,84251.0,84250.0,0.80935549]
[1743185088503,0.0003013,84251.0,84250.0,0.84502449]
[1743185088911,0.0003013,84251.0,84250.0,0.84202449]
[1743185089089,0.0003013,84251.0,84250.0,1.54802449]
[1743185089466,0.0003013,84251.0,84250.0,1.54202449]
[1743185089914,0.0003013,84251.0,84250.0,1.54802449]
[1743185090088,0.0003013,84251.0,84250.0,1.54502449]
[1743185090502,0.0003013,84251.0,84250.0,1.55102449]
[1743185090711,0.0003013,84251.0,84250.0,1.55136189]
[1743185090913,0.0003013,84251.0,84250.0,1.54536189]
[1743185091296,0.0003013,84251.0,84250.0,1.55136189]
[1743185094745,0.0003013,84251.0,84250.0,1.53682104]
[1743185094963,0.0003013,84251.0,84250.0,1.55136189]
[1743185096935,0.0003013,84251.0,84250.0,1.42606189]
[1743185097758,0.0003013,84251.0,84250.0,1.39039289]
[1743185097978,0.0003013,84251.0,84250.0,0.67839289]
[1743185098458,0.0003013,84251.0,84250.0,0.36985204]
[1743185098660,0.2495553,84251.0,84250.0,0.0063374]
[1743185098881,0.0003013,84251.0,84250.0,0.0063374]
[1743185099056,0.00418276,84251.0,84250.0,0.0063374]
[1743185099259,0.00418276,84251.0,84250.0,0.2437254]
[1743185099394,0.00418276,84251.0,84250.0,0.2497254]
[1743185099603,0.00418276,84251.0,84250.0,0.2555944]
[1743185099824,0.00418276,84251.0,84250.0,0.2495944]
[1743185100077,0.0003013,84251.0,84250.0,0.2535944]
[1743185100203,0.0003013,84251.0,84250.0,0.2457254]
[1743185100399,0.25638144,84251.0,84250.0,0.0083374]
[1743185100623,0.0003013,84251.0,84250.0,0.0083374]
[1743185100864,0.00415998,84251.0,84250.0,0.0083374]
[1743185101003,0.0003013,84251.0,84250.0,0.0083374]
[1743185101203,0.25341398,84251.0,84250.0,0.0083374]
[1743185101401,0.2495553,84251.0,84250.0,0.0043374]
[1743185101629,0.00415998,84251.0,84250.0,0.0063374]
[1743185102383,0.00415998,84251.0,84250.0,0.0023374]
[1743185103331,0.00415998,84251.0,84250.0,0.0043374]
[1743185103532,0.00415998,84251.0,84250.0,0.2417254]
[1743185103733,0.00415998,84251.0,84250.0,0.38239289]
[1743185103941,0.00334607,84251.0,84250.0,0.68239289]
[1743185104175,0.1372,84257.0,84256.0,0.249239]
[1743185104328,0.2858467,84277.0,84273.0,0.237323]
[1743185104537,0.14062607,84276.0,84275.0,0.237318]
[1743185105062,0.14062607,84276.0,84274.0,0.011866]
[1743185105462,0.14062607,84276.0,84274.0,0.249185]
[1743185106088,0.14062607,84276.0,84274.0,0.237321]
[1743185106289,0.14062607,84276.0,84264.0,0.237347]
[1743185106495,0.237348,84265.0,84262.0,0.237352]
[1743185106694,0.237338,84268.0,84265.0,0.237345]
[1743185106891,0.23734,84267.0,84263.0,0.23735]
[1743185107096,0.237343,84266.0,84263.0,0.23735]
[1743185107645,0.237343,84266.0,84261.0,0.02363681]
[1743185107869,0.237346,84265.0,84259.0,0.237363]
[1743185108084,0.237346,84265.0,84260.0,0.23736]
[1743185108550,0.237346,84265.0,84259.0,0.13770642]
[1743185108551,0.237354,84263.0,84259.0,0.13770642]
[1743185108766,0.237354,84263.0,84260.0,0.23736]
[1743185109244,0.13716,84262.0,84260.0,0.23736]
[1743185109469,0.13716,84262.0,84260.0,0.24036]
[1743185109691,0.13716,84262.0,84260.0,0.23736]
[1743185109935,0.13716,84262.0,84258.0,0.011868]
[1743185109936,0.21656,84262.0,84258.0,0.011868]
[1743185110150,0.21656,84262.0,84260.0,0.240359]
[1743185110392,0.237334,84270.0,84266.0,0.237341]
[1743185110605,0.237338,84268.0,84265.0,0.249212]
[1743185110834,0.011866,84268.0,84262.0,0.249221]
[1743185111080,0.23734,84267.0,84263.0,0.237349]
[1743185111279,0.23734,84267.0,84264.0,0.237348]
[1743185111636,0.00336596,84266.0,84265.0,0.237346]
[1743185112319,0.23734,84267.0,84265.0,0.237346]
[1743185112561,0.24071096,84266.0,84262.0,0.249221]
[1743185112771,0.249228,84260.0,84240.0,0.01187]
[1743185112970,0.237385,84251.0,84247.0,0.237396]
[1743185113169,0.13696,84251.0,84248.0,0.237394]
[1743185113370,0.13696,84251.0,84249.0,0.58910617]
[1743185113637,0.14033272,84251.0,84249.0,0.58910617]
[1743185113845,0.38958672,84251.0,84249.0,0.56512]
[1743185114201,0.38958672,84251.0,84250.0,0.00078036]
[1743185114405,0.37771772,84251.0,84250.0,0.00078036]
[1743185114609,0.00337272,84251.0,84250.0,0.25003736]
[1743185114812,0.0768689,84267.0,84261.0,0.011867]
[1743185115067,0.0768689,84267.0,84263.0,0.237352]
[1743185115197,0.55448,84264.0,84263.0,0.249219]
[1743185115392,0.55448,84264.0,84258.0,0.011868]
[1743185115622,0.55448,84264.0,84260.0,0.23736]
[1743185115623,0.237354,84263.0,84260.0,0.23736]
[1743185115819,0.55448,84264.0,84260.0,0.23736]
[1743185116019,0.55448,84264.0,84261.0,0.237357]
[1743185116334,0.79183,84264.0,84261.0,0.237357]
[1743185117419,0.1379689,84267.0,84266.0,0.237343]
[1743185117695,0.1379689,84267.0,84262.0,0.237354]
[1743185117959,0.1498359,84267.0,84262.0,0.237354]
[1743185118414,0.011867,84266.0,84260.0,0.237358]
[1743185118655,0.011867,84265.0,84261.0,0.239357]
[1743185118879,0.249213,84265.0,84261.0,0.237357]
[1743185119316,0.249213,84265.0,84262.0,0.001]
[1743185119524,0.237349,84264.0,84259.0,0.24923]
[1743185119742,0.237349,84264.0,84260.0,0.237358]
[1743185120016,0.0488469,84265.0,84261.0,0.011867]
[1743185120212,0.0488469,84265.0,84261.0,0.012867]
[1743185120507,0.237346,84265.0,84261.0,0.250224]
[1743185120894,0.237349,84264.0,84261.0,0.238357]
[1743185121101,0.249221,84262.0,84261.0,0.001]
[1743185121449,0.237349,84264.0,84261.0,0.001]
[1743185121694,0.04172938,84264.0,84261.0,0.237357]
[1743185121901,0.654746,84265.0,84260.0,0.24036]
[1743185122112,0.23735,84264.0,84260.0,0.23736]
[1743185122329,0.237353,84263.0,84260.0,0.23736]
[1743185122546,0.237353,84263.0,84261.0,0.003]
[1743185122753,0.011867,84262.0,84261.0,0.001]
[1743185122978,0.249223,84262.0,84258.0,0.237365]
[1743185123176,0.387306,84261.0,84260.0,0.001]
[1743185123882,0.237362,84260.0,84256.0,0.23737]
[1743185124085,0.237368,84258.0,84254.0,0.011868]
[1743185124290,0.00334759,84259.0,84255.0,0.011868]
[1743185124421,0.011868,84260.0,84256.0,0.26057312]
[1743185124626,0.00334759,84258.0,84256.0,0.26057312]
[1743185124989,0.237373,84256.0,84252.0,0.23738]
[1743185125196,0.237373,84256.0,84253.0,0.237377]
[1743185125413,0.249236,84258.0,84254.0,0.240377]
[1743185125625,0.00334759,84255.0,84254.0,0.237377]
[1743185125751,0.249236,84258.0,84254.0,0.237377]
[1743185125954,0.237368,84258.0,84256.0,0.003]
[1743185126151,0.237363,84259.0,84256.0,0.237371]
[1743185126552,0.011868,84258.0,84254.0,0.003]
[1743185126873,0.237363,84260.0,84257.0,0.237368]
[1743185127290,0.237366,84258.0,84256.0,0.003]
[1743185127494,0.237364,84259.0,84256.0,0.003]
[1743185127739,0.237367,84258.0,84256.0,0.003]
[1743185128012,0.237364,84259.0,84256.0,0.240371]
[1743185128214,0.37544,84261.0,84258.0,0.237366]
[1743185128396,0.011868,84260.0,84255.0,0.249242]
[1743185128591,0.37544,84261.0,84256.0,0.003]
[1743185128771,0.237364,84259.0,84256.0,0.003]
[1743185128930,0.249237,84257.0,84256.0,0.003]
[1743185129134,0.4425508,84257.0,84256.0,0.003]
[1743185129378,0.4425508,84257.0,84251.0,0.0003378]
[1743185129379,0.237383,84252.0,84251.0,0.0003378]
[1743185129939,0.249252,84252.0,84251.0,0.0003378]
[1743185130393,0.27150134,84252.0,84251.0,0.0003378]
[1743185131567,0.249252,84252.0,84251.0,0.0003378]
[1743185131768,0.37497878,84252.0,84251.0,0.0003378]
[1743185131990,0.37497878,84252.0,84251.0,0.0013378]
[1743185132349,0.26072114,84252.0,84251.0,0.0013378]
[1743185132553,0.26072114,84252.0,84251.0,0.0033378]
[1743185135240,0.14910914,84252.0,84251.0,0.0033378]
[1743185135560,0.39836114,84252.0,84251.0,0.0033378]
[1743185135945,0.26072114,84252.0,84251.0,0.0033378]
[1743185136150,0.39836114,84252.0,84251.0,0.0033378]
[1743185138226,0.14910914,84252.0,84251.0,0.0033378]
[1743185138629,0.38649214,84252.0,84251.0,0.0033378]
[1743185138835,0.14902914,84252.0,84251.0,0.0033378]
[1743185139171,0.38641214,84252.0,84251.0,0.0033378]
[1743185140009,0.14902914,84252.0,84251.0,0.0033378]
[1743185140374,0.14902914,84252.0,84251.0,0.2525918]
[1743185140375,0.14919804,84252.0,84251.0,0.2525918]
[1743185141114,0.1377289,84252.0,84251.0,0.2525918]
[1743185141540,0.14920223,84252.0,84251.0,0.2525918]
[1743185141875,0.01164223,84252.0,84251.0,0.2525918]
[1743185142079,0.14912223,84252.0,84251.0,0.2525918]
[1743185143244,0.01164223,84252.0,84251.0,0.2525918]
[1743185143449,0.14900223,84252.0,84251.0,0.2525918]
[1743185143806,0.1375289,84252.0,84251.0,0.2525918]
[1743185144796,0.14900223,84252.0,84251.0,0.2525918]
[1743185145165,0.1375289,84252.0,84251.0,0.2525918]
[1743185145983,0.0001689,84252.0,84251.0,0.2525918]
[1743185146137,0.1374089,84252.0,84251.0,0.2525918]
[1743185148257,0.1372489,84252.0,84251.0,0.2525918]
[1743185150497,0.1372489,84252.0,84251.0,0.2505918]
[1743185150701,0.1372489,84252.0,84251.0,0.2495918]
[1743185151062,0.1372489,84252.0,84251.0,0.2555918]
[1743185152383,0.1372489,84252.0,84251.0,0.36984944]
[1743185152384,0.0001689,84252.0,84251.0,0.36984944]
[1743185152892,9e-07,84252.0,84251.0,0.68439029]
[1743185153031,9e-07,84252.0,84251.0,0.72130533]
[1743185153234,9e-07,84252.0,84251.0,0.80430533]
[1743185153845,9e-07,84252.0,84251.0,0.80130533]
[1743185154618,9e-07,84252.0,84251.0,0.80230533]
[1743185155026,9e-07,84252.0,84251.0,0.80530533]
[1743185155451,0.3,84288.0,84285.0,0.23729]
[1743185155882,0.00370324,84289.0,84283.0,0.237293]
[1743185156091,0.237281,84288.0,84285.0,0.23729]
[1743185156557,0.249147,84289.0,84283.0,0.011864]
[1743185156558,0.0116646,84289.0,84283.0,0.011864]
[1743185156759,0.23741473,84288.0,84280.0,0.011865]
[1743185157007,0.13685273,84288.0,84286.0,0.237286]
[1743185157612,0.13685273,84288.0,84287.0,0.237284]
[1743185158795,0.237286,84287.0,84283.0,0.237295]
[1743185158991,0.237293,84284.0,84281.0,0.237293]
[1743185159348,0.237293,84284.0,84279.0,0.237304]
[1743185159773,0.237298,84282.0,84279.0,0.237304]